Cogmind - Beta 11.1 @@@ ROGUE MODE // 2022.08.24 @ 01:11:37 Player: Okkudo Result: Destroyed by G-47 Trooper with Particle Gun Performance ------------- Evolutions (1) 500 Regions Visited (2) 400 Robots Destroyed (19) 95 Value Destroyed (487) 487 Prototype IDs (0) 0 Alien Tech Used (0) 0 Bonus (0) 0 TOTAL SCORE: 1482 Bonus ------- None Cogmind --------- Core Integrity 0/400 Matter 240/300 Energy 100/100 System Corruption 0% Temperature Warm (127) Movement Core (100) Ox1 Location -9/Materials Parts ------- > --- POWER (1) -------- (None) > --- PROPULSION (2) --- (None) > --- UTILITY (4) ------ Small Storage Unit Visual Processing Unit Signal Interpreter > --- WEAPON (2) ------- (None) > --- INVENTORY (8) ---- Hacking Suite Datajack Peak State ------------ > --- POWER ------------ Light Ion Engine > --- PROPULSION ------- Aluminum Leg Aluminum Leg > --- UTILITY ---------- Small Storage Unit Visual Processing Unit Signal Interpreter > --- WEAPON ----------- Assault Rifle Grenade Launcher > --- INVENTORY -------- Hacking Suite Medium Laser Small Laser Datajack [Rating: 9] Favorites ----------- Power Light Ion Engine Engine Light Ion Engine Propulsion Aluminum Leg Leg Aluminum Leg Utility Small Storage Unit Storage Small Storage Unit Processor Visual Processing Unit Weapon Assault Rifle Energy Gun Small Laser Ballistic Gun Assault Rifle Launcher Grenade Launcher Build | -11 -10 -9 ------- Run | Scr Mat Mat Slots Evolved 2 | . . 2 Power . | . . . Propulsion . | . . . Utility 2 | . . 2 Weapon . | . . . Parts Attached 15 | 6 4 5 Power 2 | 1 1 . Engine 2 | 1 1 . Core . | . . . Reactor . | . . . Propulsion 4 | 2 2 . Treads . | . . . Leg 4 | 2 2 . Wheel . | . . . Hover . | . . . Flight . | . . . Utility 3 | 1 . 2 Device . | . . . Storage 1 | 1 . . Processor 2 | . . 2 Hackware . | . . . Protection . | . . . Artifact . | . . . Weapon 6 | 2 1 3 Energy Gun 3 | 1 . 2 Energy Cannon . | . . . Ballistic Gun 1 | 1 . . Ballistic Cannon . | . . . Launcher 2 | . 1 1 Special Weapon . | . . . Impact Weapon . | . . . Slashing Weapon . | . . . Piercing Weapon . | . . . Special Melee Weapon . | . . . Unidentified Prototypes . | . . . Parts Lost 8 | . 1 7 Power 2 | . 1 1 Propulsion 2 | . . 2 Utility . | . . . Weapon 4 | . . 4 Highest Loss Streak 7 | . 1 7 To Critical Strikes . | . . . Average Slot Usage (%) 83 | . 84 81 Engine 12 | . 13 8 Leg 25 | . 28 18 Storage 13 | . 14 11 Processor 5 | . . 22 Energy Gun 8 | . 10 2 Ballistic Gun 12 | . 14 8 Launcher 4 | . 3 8 Naked Turns . | . . . Heaviest Build 13 | 13 13 13 Greatest Support 20 | 20 20 20 Greatest Overweight (x) 1 | . . 1 Average Overweight (x) . | . . . Largest Inventory Capacity 8 | 8 8 8 Average Capacity 7 | 6 8 8 Most Carried 6 | 4 6 5 Average Carried 3 | 1 4 3 Final Capacity 8 | 8 8 8 Final Carried 6 | 1 6 2 Class Distribution -------------------- 82% | Mutant 17% | Scavenger-Mutant Dominant Class ---------------- Mutant | -10/Materials Scavenger-Mutant | -9/Materials Resources | -11 -10 -9 ----------- Run | Scr Mat Mat Matter Collected 466 | 197 269 . Remotely . | . . . Salvage Created 559 | . 346 213 Parts 40 | . 35 5 Haulers Intercepted 1 | . . 1 Recyclers Shooed . | . . . Parts Field Recycled . | . . . Retrieved Matter . | . . . Parts Self-Destructed . | . . . Prevented . | . . . Kills | -11 -10 -9 ------- Run | Scr Mat Mat Combat Hostiles Destroyed 11 | . 7 4 Guns 9 | . 5 4 AOE 2 | . 2 . Classes Destroyed 6 | . 5 1 Worker 1 | . 1 . Builder 2 | . 2 . Hauler 1 | . . 1 Operator 1 | . 1 . Watcher 3 | . 3 . Grunt 11 | . 7 4 Best Kill Streak 5 | . 5 2 Combat Bots Only 2 | . 2 2 Max Kills in Single Turn 2 | . 2 1 Gunslinging . | . . . Exploded 1 | . 1 . Melee . | . . . Uniques/NPCs Destroyed . | . . . Combat | -11 -10 -9 -------- Run | Scr Mat Mat Damage Taken 1177 | . 303 874 Core 450 | . 38 412 Absorbed by Shields . | . . . Core Remaining (%) 92 | 100 84 . Volleys Fired 64 | . 43 21 Largest 2 | . 2 2 Hottest 90 | . 60 90 Shots Fired 101 | . 75 26 Gun 94 | . 68 26 Cannon . | . . . Launcher 7 | . 7 . Special . | . . . Kinetic 51 | . 36 15 Thermal 43 | . 32 11 Explosive 7 | . 7 . Electromagnetic . | . . . Robot Hit Streak 13 | . 13 11 Robot Miss Streak 3 | . 3 1 Penetration Max . | . . . Secondary Targets 1 | . . 1 Max Gunslinging Chain 1 | . . 1 Shots Hit Robots 71 | . 50 21 Core Hits 33 | . 24 9 Critical Kills . | . . . Critical Parts Destroyed . | . . . Critical Strikes 1 | . . 1 Burn 1 | . . 1 Melee Attacks . | . . . Impact . | . . . Slashing . | . . . Piercing . | . . . Sneak Attacks . | . . . Combat Hostiles . | . . . Follow-up Attacks . | . . . Damage Inflicted 1202 | . 923 279 Guns 778 | . 499 279 Cannons . | . . . Explosions 420 | . 420 . Melee . | . . . Ramming 4 | . 4 . Kinetic 452 | . 277 175 Thermal 326 | . 222 104 Explosive 420 | . 420 . Electromagnetic . | . . . Impact . | . . . Slashing . | . . . Piercing . | . . . Highest Corruption . | . . . Average Corruption . | . . . Corruption Purged . | . . . Corruption Blocked . | . . . Overload Shots . | . . . Overflow Damage 5 | . 5 . Projectiles . | . . . Explosions 5 | . 5 . Melee . | . . . Knockbacks . | . . . Impact . | . . . Kinetic . | . . . Secondary . | . . . Self-Inflicted Damage 27 | . 27 . Shots 1 | . 1 . Rammed . | . . . Targets Rammed 3 | . 3 . Kicked 3 | . 3 . Crushed . | . . . Highest Temperature 254 | . 52 254 Average Temperature 58 | . 21 119 Received Heat Transfer 660 | . 153 507 Siege Activations . | . . . Robots Corrupted . | . . . Combat Hostiles . | . . . Parts Fried . | . . . Impact Corruptions . | . . . Robots Melted . | . . . Combat Hostiles . | . . . Parts Melted 2 | . . 2 Heat Transferred 835 | . 500 335 Parts Sabotaged . | . . . Parts Stolen . | . . . Parts Stripped . | . . . Power Chain Reactions . | . . . Missiles Intercepted . | . . . Alert | -11 -10 -9 ------- Run | Scr Mat Mat Peak Influence 190 | . 190 118 Initial 46 | . . 46 Average 87 | . 102 63 Maximum Alert Level . | . . . Low Security (%) 100 | 100 100 100 Level 1 . | . . . Level 2 . | . . . Level 3 . | . . . Level 4 . | . . . Level 5 . | . . . High Security . | . . . Max Security . | . . . Squads Dispatched 3 | . 2 1 Investigation 2 | . 1 1 Extermination . | . . . Reinforcement 1 | . 1 . Assault . | . . . Garrison . | . . . Intercept . | . . . Searches Triggered . | . . . Construction Impeded . | . . . Haulers Reinforced . | . . . Active Scanning Responses . | . . . Cargo Convoy Interrupts . | . . . Stealth | -11 -10 -9 --------- Run | Scr Mat Mat Distress Signals 1 | . . 1 Communications Jammed . | . . . Distress Signals . | . . . Times Spotted 25 | . 15 10 Peak Tracking Total 8 | . 3 8 Tactical Retreats . | . . . Traps | -11 -10 -9 ------- Run | Scr Mat Mat Traps Triggered 1 | . 1 . Indirectly . | . . . Trap Hack Attempts . | . . . Triggered . | . . . Disarmed . | . . . Reprogrammed . | . . . Reused . | . . . Traps Extracted . | . . . Installed . | . . . Triggered . | . . . Machines | -11 -10 -9 ---------- Run | Scr Mat Mat Machines Disabled 1 | . 1 . Max in Single Turn 1 | . 1 . Machines Sabotaged . | . . . Garrisons Compromised . | . . . Overloaded Fab Kills . | . . . Hacking | -11 -10 -9 --------- Run | Scr Mat Mat Machines Accessed 3 | . 2 1 Terminals 3 | . 2 1 Fabricators . | . . . Repair Stations . | . . . Recycling Units . | . . . Scanalyzers . | . . . Garrison Access . | . . . Total Hacks 11 | . 8 3 Successful 6 | . 5 1 Failed 5 | . 3 2 Catastrophic . | . . . Database Lockouts . | . . . Manual 8 | . 7 1 Terminals 11 | . 8 3 Fabricators . | . . . Repair Stations . | . . . Recycling Units . | . . . Scanalyzers . | . . . Garrison Access . | . . . Terminal Hacks 3 | . 3 . Alert Level 1 | . 1 . Locate Traps 1 | . 1 . Zone Layout 1 | . 1 . Fabricator Hacks . | . . . Repair Station Hacks . | . . . Recycling Unit Hacks . | . . . Scanalyzer . | . . . Garrison Access Hacks . | . . . Unauthorized Hacks 3 | . 2 1 Terminals 3 | . 2 1 Botnet 3 | . 2 1 Fabricators . | . . . Repair Stations . | . . . Recycling Units . | . . . Scanalyzers . | . . . Garrison Access . | . . . Data Cores Recovered . | . . . Used . | . . . Hacking Detections 2 | . 1 1 Full Trace Events 2 | . 1 1 Feedback Events . | . . . Feedback Blocked . | . . . Robot Schematics Acquired . | . . . Robots Built . | . . . Authchips . | . . . Time . | . . . Total Robot Build Rating . | . . . Part Schematics Acquired . | . . . Parts Built . | . . . Authchips . | . . . Time . | . . . Total Part Build Rating . | . . . Parts Repaired . | . . . Time . | . . . Parts Recycled . | . . . Recycled Matter . | . . . Retrieved Matter . | . . . Retrieved Components . | . . . Parts Scanalyzed . | . . . Part Schematics Acquired . | . . . Parts Damaged . | . . . Bothacking | -11 -10 -9 ------------ Run | Scr Mat Mat Used RIF Installer . | . . . Robots Hacked . | . . . Non-combat . | . . . Combat . | . . . Robot Hacks Applied . | . . . Relay Couplers Released . | . . . Fabnet Peak Effective % . | . . . Robots Rewired . | . . . Allies Hacked . | . . . Hacks Repelled . | . . . Allies | -11 -10 -9 -------- Run | Scr Mat Mat Total Allies . | . . . Largest Group . | . . . Highest-Rated Group . | . . . Highest-Rated Ally . | . . . Total Orders . | . . . Ally Attacks . | . . . Total Damage . | . . . Kills . | . . . Allies Corrupted . | . . . Allies Melted . | . . . Intel | -11 -10 -9 ------- Run | Scr Mat Mat Robot Analysis Total . | . . . Derelict Logs Recovered . | . . . Drone Launches . | . . . Drone Recoveries . | . . . Exploration | -11 -10 -9 ------------- Run | Scr Mat Mat Turns Passed 751 | 53 540 158 Spaces Moved 434 | 38 307 89 Core 16 | 7 . 9 Treads . | . . . Legs 418 | 31 307 80 Wheels . | . . . Hover . | . . . Flight . | . . . Fastest Speed 50 | 50 120 100 Average Speed 118 | 107 120 117 Slowest Speed 120 | 120 120 120 Overloaded Moves . | . . . Propulsion Burnouts . | . . . Robots Hopped . | . . . Cave-ins Triggered . | . . . Exploration Rate (%) 22 | 4 50 13 Regions Visited 2 Branch Regions . Pre-discovered Areas . | . . . Known Exits Taken . | . . . Unknown Exits Taken 2 | 1 1 . Scrap Searched . | . . . Spaces Dug . | . . . Terrain Destroyed 9 | . 9 . Melee . | . . . Projectile . | . . . AOE 9 | . 9 . Terrain Rammed . | . . . Walls Destroyed . | . . . Machines Disabled . | . . . Actions | -11 -10 -9 --------- Run | Scr Mat Mat Total 567 | 50 402 115 Wait 36 | . 36 . Move 432 | 37 306 89 Hop . | . . . Pick Up 15 | 7 8 . Fast Attach . | . . . Attach 11 | 6 1 4 Detach . | . . . Swap 4 | . 3 1 Drop 2 | . 2 . Fire 64 | . 43 21 Melee . | . . . Ram . | . . . Kick 3 | . 3 . Crush . | . . . Escape Stasis . | . . . Rewire . | . . . Trap . | . . . Miscellaneous . | . . . Route ------- -11/Scrapyard -10/Materials -9/Materials History --------- Turn | Location | Event 8 | -11/Scrapyard | Discovered new exit (range 15) 54 | -11/Scrapyard | Entered Materials 301 | -10/Materials | Build established: Mutant 533 | -10/Materials | Discovered new exit (range 16) 594 | -10/Materials | Entered another Materials area 594 | -9/Materials | Evolved 2 slots: Utility x2 744 | -9/Materials | Core integrity fell below 50% 749 | -9/Materials | Core integrity fell below 20% 752 | -9/Materials | Destroyed by G-47 Trooper with Particle Gun Last Messages --------------- 00725_ G-34 Mercenary suffers critical hit (Burn). 00726_ K-01 Serf collects debris. 00728_ Lgt. Ion Engine destroyed. 00729_ G-34 Mercenary heat spikes uncontrollably. 00730_ G-34 Mercenary overheating. 00731_ G-34 Mercenary heat damages Ion Engine. 00731_ Aluminum Leg melted. 00731_ Heat Sink melted. 00731_ G-34 Mercenary destroyed. 00731_ Switching to secondary target: G-47 Trooper. 00733_ K-01 Serf collects debris. 00734_ Aluminum Leg destroyed. 00734_ Critical hit (Burn: +37). 00737_ G-47 Trooper destroyed. 00740_ Med. Laser destroyed. 00740_ Sml. Laser destroyed. 00740_ Critical hit (Burn: +37). 00743_ Grenade Launcher destroyed. 00744_ K-01 Serf collects debris. 00752_ Critical hit (Burn: +37). Map ----- +----------------------------------------------------+ | ??????????????????????????????????????? | | ??????????????????????????????????????? | | ??????????????????????????????????????? | | ??????????????????????????????????????? | | ??????????????????????????????????????? | | ??????????????????????????????????????? | | ??????????????????????????????????????? | | ??????????????????????????????????????? | | ??????????????????????????????????????? | | ????????????????###???????????????????? | | ???????????????# ??????????????????? | | ???????????????# """??? ?????????????? | | ???????????????# """"" ?????????????? | | ???????????????# """"" ??????????????? | | ???????????????# """"" ???????????????? | | ???############# """ ????????????????? | | ???# ## ??????????????????? | | ???# ##%% ???????????????????? | | ???# ##+#????????????????????? | | ???# *!#????????????????????? | | ???# k%=#????????????????????? | | ???# " g #????????????????????? | | ???# T kggY#????????????????????? | | ???# " g #????????????????????? | | ???# #????????????????????? | | ???# @ + *!????????????????? | | ???# ##### # !![#??????????????? | | ???# #???# # ![[#??????????????? | | ???# #???# #? #??????????????? | | ???# ##+##### #?? ###??????????????? | | ???# # # #???#????????????????? | | ???# # ] # #????????????????????? | | ???# # # #????????????????????? | | ???# # # ###!! #????????????? | | ???# # + !%!= + #?????? | | ???# # # ###=! #????????????? | | ???# #####+## #????????????????????? | | ???# #????????????????????? | | ???# ##### ####????????????????????? | | ???# #???# #???????????????????????? | | ??##+#####+## #???????????????????????? | | ??# # #???????????????????????? | | ??# """ """ # ###?????????????????????? | | ??# """ """ # #?????????????????????? | | ??# """ """ + #?????????????????????? | | ??# # #?????????????????????? | | ??# ! # #?????????????????????? | | ??# # #?????????????????????? | | ??# # #?????????????????????? | | ??########### #?????????????????????? | +----------------------------------------------------+ Best States ------------- Heat Dissipation 28 Energy Generation 10 Energy Capacity 250 Matter Stores 300 Matter Capacity 300 Sight Range 18 Terrain Scan Density 10 Evasion (%) 55 Item Schematics ----------------- None Robot Schematics ------------------ None Fabricated ------------ Nothing Alien Tech Used ----------------- None Achievements -------------- None Challenges ------------ None Game ------ Seed FactoryTransmissionRailgun Manual? 0 Play Time 00:14:03 Cumulative 37.2 hours Start 2022.08.24 @ 00:58:48 End 2022.08.24 @ 01:11:37 Sessions 1 Manual Loads 0 Difficulty Rogue Special Mode None Game No. 85 Rogue 85 Adventurer 0 Explorer 0 Win Type - Total 0 Types 0/0/0/0/0/0/0/0/0 Lore% 25 Gallery% 24 Achievement% 23 Wizard Run 0 Options --------- ASCII 0 Keyboard 0 Movement Mouse Keybinds 0 Fullscreen 1 Font 12/Smallcaps Map View 83x54 Tactical HUD 1 Map Filters NONE Filters NONE Steam 1 RUN: 4b1ebd6f-d8ff-41a0-b18f-504085aedf22